bitfinex/quotes_BTCUSD_20250618
["timestamp","ask_amount","ask_price","bid_price","bid_amount"]
[1750253950288,0.02873434,104400.0,104390.0,0.59076247]
[1750253950513,0.02497725,104410.0,104400.0,0.2847054]
[1750253950732,0.03455478,104410.0,104400.0,0.44940621]
[1750253950949,0.22610768,104410.0,104400.0,0.22910081]
[1750253951855,0.22910768,104410.0,104400.0,0.43025014]
[1750253952439,0.03755478,104410.0,104400.0,0.44940621]
[1750253952622,0.2386842,104410.0,104400.0,0.43982831]
[1750253952847,0.04713167,104410.0,104400.0,0.43982831]
[1750253953048,0.23868475,104410.0,104400.0,0.4398285]
[1750253953311,0.24826237,104410.0,104400.0,0.50220658]
[1750253953742,0.04713176,104410.0,104400.0,0.51178448]
[1750253953910,0.23868493,104410.0,104400.0,0.4926285]
[1750253954262,0.22910768,104410.0,104400.0,0.4926285]
[1750253954479,0.22910768,104410.0,104400.0,0.28190081]
[1750253954665,0.21953015,104410.0,104400.0,0.28190081]
[1750253955536,0.21953015,104410.0,104400.0,0.47347169]
[1750253955793,0.2291075,104410.0,104400.0,0.50220639]
[1750253955989,0.2291075,104410.0,104400.0,0.4926284]
[1750253956444,0.21953015,104410.0,104400.0,0.21308176]
[1750253956903,0.39573015,104410.0,104400.0,0.18188176]
[1750253957140,0.20114924,104400.0,104390.0,0.00024232]
[1750253957361,0.21654924,104400.0,104390.0,0.18152408]
[1750253957828,0.21654924,104400.0,104390.0,0.12908408]
[1750253958053,0.21654924,104400.0,104390.0,0.18152408]
[1750253958288,0.21654924,104400.0,104390.0,0.21182408]
[1750253958511,0.21072769,104400.0,104390.0,0.4648206]
[1750253958736,0.21072769,104400.0,104390.0,0.47439969]
[1750253958964,0.00957799,104400.0,104390.0,0.4839786]
[1750253959208,0.0191557,104400.0,104390.0,0.49355741]
[1750253959434,0.17397274,104410.0,104390.0,0.49355741]
[1750253959435,0.21070713,104410.0,104400.0,0.26344933]
[1750253959702,0.21070713,104410.0,104400.0,0.22507864]
[1750253959931,0.20112997,104410.0,104400.0,0.22507864]
[1750253960394,0.20112997,104410.0,104400.0,0.43580651]
[1750253960848,0.20412997,104410.0,104400.0,0.22507864]
[1750253961309,0.20112997,104410.0,104400.0,0.22507864]
[1750253962729,0.20112997,104410.0,104400.0,0.42722806]
[1750253962965,0.22028466,104410.0,104400.0,0.45596276]
[1750253963195,0.0287313,104410.0,104400.0,0.45596285]
[1750253963428,0.22986127,104410.0,104400.0,0.44638477]
[1750253963667,0.229862,104410.0,104400.0,0.45596285]
[1750253963902,0.01915405,104410.0,104400.0,0.45596285]
[1750253964132,0.02873112,104410.0,104400.0,0.46554075]
[1750253964847,0.03830856,104410.0,104400.0,0.46554075]
[1750253965313,0.22986173,104410.0,104400.0,0.45596285]
[1750253965539,0.22028475,104410.0,104400.0,0.37026963]
[1750253965762,0.2107075,104410.0,104400.0,0.36069109]
[1750253965982,0.19155253,104410.0,104400.0,0.15954176]
[1750253966211,0.19155253,104410.0,104400.0,0.18178176]
[1750253966431,0.36763253,104410.0,104400.0,0.14968176]
[1750253966896,0.36763253,104410.0,104400.0,0.19191508]
[1750253967117,0.19155253,104410.0,104400.0,0.25601508]
[1750253967575,0.19155253,104410.0,104400.0,0.20357508]
[1750253967798,0.02873213,104410.0,104400.0,0.47632066]
[1750253968031,0.22028466,104410.0,104400.0,0.46674267]
[1750253968488,0.20113006,104410.0,104400.0,0.20357508]
[1750253968739,0.20113006,104410.0,104400.0,0.21378176]
[1750253968969,0.20113006,104410.0,104400.0,0.18118176]
[1750253969231,0.20113006,104410.0,104400.0,0.14968176]
[1750253969432,0.20781346,104410.0,104400.0,0.001]
[1750253970322,0.20114924,104400.0,104390.0,0.28284232]
[1750253970544,0.37718924,104400.0,104390.0,0.37908408]
[1750253970772,0.37718924,104400.0,104390.0,0.42000249]
[1750253971001,0.1736491,104410.0,104390.0,0.37908408]
[1750253971284,0.20354891,104400.0,104390.0,0.37908408]
[1750253971517,0.20114924,104400.0,104390.0,0.37908408]
[1750253972196,0.37718924,104400.0,104390.0,0.32664408]
[1750253972633,0.37718924,104400.0,104390.0,0.32764408]
[1750253973371,5.54395502,104400.0,104390.0,0.00124232]
[1750253973599,5.72525502,104400.0,104390.0,0.00124232]
[1750253974055,5.66517119,104400.0,104390.0,0.00124232]
[1750253974277,5.63387119,104400.0,104390.0,0.00024232]
[1750253975439,5.69277119,104400.0,104390.0,0.00024232]
[1750253975890,5.69277052,104400.0,104390.0,0.00024232]
[1750253976105,5.69377052,104400.0,104390.0,0.00024232]
[1750253976555,5.51773052,104400.0,104390.0,0.00024232]
[1750253976773,5.51673052,104400.0,104390.0,0.00024232]
[1750253977008,5.69273052,104400.0,104390.0,0.00024232]
[1750253977228,5.69573052,104400.0,104390.0,0.00024232]
[1750253978352,5.79197228,104400.0,104390.0,0.00024232]
[1750253978800,5.79196587,104400.0,104390.0,0.00024232]
[1750253979957,5.3581685,104390.0,104380.0,0.0001]
[1750253980179,5.46108513,104390.0,104380.0,0.0001]
[1750253980407,5.55723435,104390.0,104380.0,0.0001]
[1750253980648,0.00958295,104350.0,104340.0,0.0001]
[1750253980891,0.37720562,104350.0,104340.0,0.0001]
[1750253982011,5.49378218,104350.0,104340.0,0.0001]
[1750253982245,5.49378218,104350.0,104340.0,0.00057452]
[1750253982702,5.52066827,104350.0,104340.0,0.00057452]
[1750253983187,5.57898875,104350.0,104340.0,0.00057452]
[1750253983412,5.67523051,104350.0,104340.0,0.00057452]
[1750253983636,5.70313051,104350.0,104340.0,0.00057452]
[1750253983872,5.82717051,104350.0,104340.0,0.00057452]
[1750253984124,0.19179133,104280.0,104270.0,0.0628]
[1750253984346,0.19179133,104280.0,104270.0,0.22053385]
[1750253984573,0.19179133,104280.0,104270.0,0.00905209]
[1750253984574,0.44607908,104280.0,104270.0,0.00905209]
[1750253984802,0.44607908,104280.0,104270.0,0.0001423]
[1750253985232,0.47120058,104280.0,104270.0,0.0001423]
[1750253985679,0.44607908,104280.0,104270.0,0.0001423]
[1750253985905,0.24179133,104280.0,104270.0,0.0323423]
[1750253986148,0.41775133,104280.0,104270.0,0.0644423]
[1750253986673,0.41875133,104280.0,104270.0,0.0644423]
[1750253987101,0.41775133,104280.0,104270.0,0.0323423]
[1750253987554,0.41775133,104280.0,104270.0,0.0333423]
[1750253987772,0.41775133,104280.0,104270.0,0.0011423]
[1750253988456,0.44668857,104280.0,104270.0,0.0011423]
[1750253988705,0.44668857,104280.0,104270.0,0.0001423]
[1750253988929,0.44668857,104280.0,104270.0,0.0031423]
[1750253989376,0.44668857,104280.0,104270.0,0.0001423]
[1750253989815,0.44668857,104280.0,104270.0,0.0011423]
[1750253990282,0.27072857,104280.0,104270.0,0.0011423]
[1750253990704,0.41775133,104280.0,104270.0,0.0322423]
[1750253990707,0.19179133,104280.0,104270.0,0.16088406]
[1750253990926,0.19179133,104280.0,104270.0,0.17721225]
[1750253990927,0.41775133,104280.0,104270.0,0.17721225]
[1750253991832,0.19179133,104280.0,104270.0,0.17721225]
[1750253992053,0.36775133,104280.0,104270.0,0.17721225]
[1750253992280,0.19179133,104280.0,104270.0,0.17721225]
[1750253992752,0.36775133,104280.0,104270.0,0.17721225]
[1750253992977,0.36775133,104280.0,104270.0,0.16088406]
[1750253993198,0.36775133,104280.0,104270.0,0.12848406]
[1750253993868,0.36775133,104280.0,104270.0,0.0322423]
[1750253995650,0.36775133,104280.0,104270.0,0.0011423]
[1750253995871,0.49370539,104280.0,104270.0,0.0011423]
[1750253997476,0.41775133,104280.0,104270.0,0.0011423]
[1750253998629,0.22596,104280.0,104270.0,0.0011423]
[1750253998845,0.41775133,104280.0,104270.0,0.0011423]
[1750253999989,0.24179133,104280.0,104270.0,0.0011423]
[1750254000237,0.41767133,104280.0,104270.0,0.0660423]
[1750254000464,0.41767133,104280.0,104270.0,0.16888829]
[1750254000927,0.20138062,104280.0,104270.0,0.16888829]
[1750254001142,0.38681018,104280.0,104270.0,0.16888829]
[1750254001361,0.37722089,104280.0,104270.0,0.16888829]
[1750254001827,0.37722089,104280.0,104270.0,0.21456406]
[1750254002054,0.37722089,104280.0,104270.0,0.16228406]
[1750254003204,0.37718089,104280.0,104270.0,0.16228406]
[1750254003676,0.19178925,104290.0,104270.0,0.3299518]
[1750254003902,0.19178925,104290.0,104280.0,0.30960879]
[1750254003903,0.01917591,104290.0,104280.0,0.30960879]
[1750254004168,0.01917591,104290.0,104280.0,0.36498769]
[1750254004169,0.23971385,104290.0,104280.0,0.36498769]
[1750254004411,0.2301253,104290.0,104280.0,0.44716636]
[1750254004644,0.00958781,104290.0,104280.0,0.46634383]
[1750254004880,0.01917572,104290.0,104280.0,0.46634383]
[1750254005110,0.01917581,104290.0,104280.0,0.44716608]
[1750254005343,0.23012557,104290.0,104280.0,0.23619636]
[1750254005567,0.20136149,104290.0,104280.0,0.28847636]
[1750254005794,0.20136149,104290.0,104280.0,0.29047636]
[1750254006388,0.21094903,104290.0,104280.0,0.42889213]
[1750254006389,0.0191759,104290.0,104280.0,0.50248105]
[1750254006606,0.21094884,104290.0,104280.0,0.5007816]
[1750254006816,0.22053776,104290.0,104280.0,0.28981142]
[1750254007024,0.21094967,104290.0,104280.0,0.28981142]
[1750254007458,0.22053831,104290.0,104280.0,0.49119222]
[1750254007661,0.22053822,104290.0,104280.0,0.28981142]
[1750254007869,0.22053822,104290.0,104280.0,0.17835189]
[1750254008077,0.00958818,104290.0,104280.0,0.4511908]
[1750254008301,0.38670299,104300.0,104290.0,0.065]
[1750254008534,0.38670299,104300.0,104290.0,0.17905189]
[1750254008749,0.21098299,104300.0,104290.0,0.17905189]
[1750254008951,0.21098299,104300.0,104290.0,0.17912022]
[1750254009595,0.21098299,104300.0,104290.0,0.14672022]
[1750254010011,0.21764323,104300.0,104290.0,0.12884176]
[1750254010226,0.21098299,104300.0,104290.0,0.17702165]
[1750254010438,0.19175455,104300.0,104290.0,0.37119014]
[1750254010650,0.22051671,104300.0,104290.0,0.4427841]
[1750254010863,0.22051598,104300.0,104290.0,0.46196055]
[1750254011073,0.23010352,104300.0,104290.0,0.45337237]
[1750254011279,0.01917407,104300.0,104290.0,0.45337237]
[1750254011495,0.20132379,104310.0,104300.0,0.20134218]
[1750254011755,0.22049694,104310.0,104300.0,0.44416011]
[1750254011963,0.23008164,104310.0,104300.0,0.4633351]
[1750254012179,0.23008237,104310.0,104300.0,0.24281793]
[1750254012390,0.21090959,104310.0,104300.0,0.24281793]
[1750254012622,0.21090959,104310.0,104300.0,0.22962655]
[1750254013050,0.21090959,104310.0,104300.0,0.3691011]
[1750254013264,0.2204952,104310.0,104300.0,0.43096873]
[1750254013466,0.20232288,104310.0,104300.0,0.22962655]
[1750254013679,0.20232288,104310.0,104300.0,0.17734655]
[1750254013940,0.20132288,104310.0,104300.0,0.22962655]
[1750254014162,0.20132288,104310.0,104300.0,0.19604005]
[1750254014381,0.20132288,104310.0,104300.0,0.23362655]
[1750254015011,0.20132288,104310.0,104300.0,0.15034655]
[1750254016525,0.20799135,104310.0,104300.0,0.11814655]
[1750254016744,0.20799135,104310.0,104300.0,0.02190479]
[1750254017178,0.20799103,104310.0,104300.0,0.004]
[1750254017627,0.21094958,104290.0,104280.0,0.08526]
[1750254017804,0.21094958,104290.0,104280.0,0.22969751]
[1750254017805,0.38650958,104290.0,104280.0,0.22969751]
[1750254019550,0.38650958,104290.0,104280.0,0.17773751]
[1750254019758,0.38650958,104290.0,104280.0,0.23369751]
[1750254019962,0.38650958,104290.0,104280.0,0.23370161]
[1750254021934,0.38650958,104290.0,104280.0,0.20340161]
[1750254022151,0.38650958,104290.0,104280.0,0.20340428]
[1750254022370,0.38650958,104290.0,104280.0,0.10024176]
[1750254022371,0.44433766,104290.0,104280.0,0.10024176]
[1750254022590,5.584207,104290.0,104280.0,0.004]
[1750254022823,5.70521064,104290.0,104280.0,0.004]
[1750254023268,0.20138071,104280.0,104270.0,0.0001423]
[1750254023509,5.30804977,104280.0,104270.0,0.0001423]
[1750254024570,5.33874977,104280.0,104270.0,0.0011423]
[1750254025640,5.36707752,104280.0,104270.0,0.0011423]
[1750254025847,5.36727401,104280.0,104270.0,0.0011423]
[1750254026061,5.33874977,104280.0,104270.0,0.0011423]
[1750254026500,5.36727401,104280.0,104270.0,0.0011423]
[1750254026718,5.48348977,104280.0,104270.0,0.0011423]
[1750254027163,5.51165421,104280.0,104270.0,0.0011423]
[1750254027398,0.25804977,104280.0,104270.0,0.09738406]
[1750254027619,0.37682071,104280.0,104270.0,0.22102247]
[1750254027857,0.37678071,104280.0,104270.0,0.22102247]
[1750254028067,0.21097,104280.0,104270.0,0.44160272]
[1750254028297,0.21097,104280.0,104270.0,0.45119274]
[1750254028500,0.22055956,104280.0,104270.0,0.45950052]
[1750254028710,0.01917756,104280.0,104270.0,0.45949997]
[1750254028930,0.01917627,104290.0,104280.0,0.23014793]
[1750254029311,0.22053391,104300.0,104290.0,0.27284995]
[1750254029535,0.22053391,104300.0,104290.0,0.38698942]
[1750254029771,0.22053391,104300.0,104290.0,0.39657797]
[1750254030223,0.22053391,104300.0,104290.0,0.41575424]
[1750254030224,0.00958708,104300.0,104290.0,0.41575424]
[1750254030455,0.01917444,104300.0,104290.0,0.48279447]
[1750254030677,0.21090932,104310.0,104300.0,0.27282963]
[1750254030920,0.21090932,104310.0,104300.0,0.45814429]
[1750254030921,0.40544237,104310.0,104300.0,0.45814429]
[1750254031141,0.23008228,104310.0,104300.0,0.45814429]
[1750254031370,0.23966908,104310.0,104300.0,0.45814429]
[1750254031589,0.23966908,104310.0,104300.0,0.46966744]
[1750254031987,0.23008237,104310.0,104300.0,0.46966744]
[1750254031988,0.20130604,104320.0,104310.0,0.20132297]
[1750254032214,0.01917085,104320.0,104310.0,0.40852223]
[1750254032427,0.22782962,104320.0,104310.0,0.17843995]
[1750254032641,0.22542995,104320.0,104310.0,0.12924176]
[1750254033513,0.22542995,104320.0,104310.0,0.14746594]
[1750254033730,0.22542995,104320.0,104310.0,0.12924176]
[1750254034340,0.22542995,104320.0,104310.0,0.13024176]
[1750254035049,0.22542995,104320.0,104310.0,0.001]
[1750254037977,5.33209696,104320.0,104310.0,0.001]
[1750254038186,5.32542995,104320.0,104310.0,0.001]
[1750254038679,0.45066995,104320.0,104310.0,0.09724176]
[1750254039557,0.40066995,104320.0,104310.0,0.09724176]
[1750254039781,0.45066995,104320.0,104310.0,0.12784176]
[1750254040000,0.45066995,104320.0,104310.0,0.16595565]
[1750254040216,0.45066995,104320.0,104310.0,0.12784176]
[1750254040678,0.45066995,104320.0,104310.0,0.001]
[1750254041579,5.78567741,104320.0,104310.0,0.001]
[1750254041804,5.81157741,104320.0,104310.0,0.001]
[1750254042029,6.44040497,104320.0,104310.0,0.001]
[1750254042258,0.21096981,104280.0,104270.0,0.0836]
[1750254042488,0.38612981,104280.0,104270.0,0.12802406]
[1750254042731,0.40067066,104280.0,104270.0,0.12802406]
[1750254042951,0.40063066,104280.0,104270.0,0.15962406]
[1750254043197,0.22551066,104280.0,104270.0,0.15962406]
[1750254043424,0.03371878,104280.0,104270.0,0.41822647]
[1750254043654,0.05289744,104280.0,104270.0,0.41822656]
[1750254043878,0.05289744,104280.0,104270.0,0.4278164]
[1750254044095,0.05289726,104280.0,104270.0,0.4278164]
[1750254044314,0.04330797,104280.0,104270.0,0.4278164]
[1750254044588,0.05289735,104280.0,104270.0,0.4288164]
[1750254045034,0.04330797,104280.0,104270.0,0.4288164]
[1750254045261,0.05289726,104280.0,104270.0,0.40963663]
[1750254045483,0.2542787,104280.0,104270.0,0.40963663]
[1750254045700,0.03371914,104280.0,104270.0,0.4288164]
[1750254046136,0.04330852,104280.0,104270.0,0.4288164]
[1750254046589,0.05289799,104280.0,104270.0,0.4288164]
[1750254047065,0.04330852,104280.0,104270.0,0.4288164]
[1750254047741,0.01454085,104280.0,104270.0,0.4288164]
[1750254047966,0.05289689,104280.0,104270.0,0.4288164]
[1750254048181,0.24468822,104280.0,104270.0,0.40004652]
[1750254048489,0.37644149,104290.0,104270.0,0.39045613]
[1750254048490,0.00958827,104290.0,104270.0,0.39045613]
[1750254048734,0.03371703,104290.0,104280.0,0.42352085]
[1750254048969,0.03371703,104290.0,104280.0,0.50865589]
[1750254049185,0.02412885,104290.0,104280.0,0.50865589]
[1750254049637,0.38596954,104300.0,104290.0,0.26606149]
[1750254049829,0.01917434,104300.0,104290.0,0.3910677]
[1750254050132,0.02875867,104310.0,104300.0,0.2852168]
[1750254050357,0.04793172,104310.0,104300.0,0.44308903]
[1750254050576,0.03834492,104310.0,104300.0,0.40893401]
[1750254050808,0.04793154,104310.0,104300.0,0.40893401]
[1750254051047,0.23966853,104310.0,104300.0,0.38975976]
[1750254051267,0.23503697,104310.0,104300.0,0.38975994]
[1750254051505,0.23503697,104310.0,104300.0,0.45941831]
[1750254051731,0.23503697,104310.0,104300.0,0.38017231]
[1750254051970,0.23503697,104310.0,104300.0,0.38975876]
[1750254052253,0.23503697,104310.0,104300.0,0.38017122]
[1750254052482,0.23503697,104310.0,104300.0,0.38975885]
[1750254052676,0.23503697,104310.0,104300.0,0.37187166]
[1750254052896,0.02412738,104310.0,104300.0,0.46322384]
[1750254053123,0.04430025,104310.0,104300.0,0.47281092]
[1750254053352,0.22885002,104310.0,104300.0,0.47651368]
[1750254053580,0.22545035,104310.0,104300.0,0.49568858]
[1750254053801,0.22545035,104310.0,104300.0,0.49868858]
[1750254054029,0.22545035,104310.0,104300.0,0.28775913]
[1750254054180,0.21586373,104310.0,104300.0,0.28775913]
[1750254055439,0.21338373,104310.0,104300.0,0.28775913]
[1750254056065,0.21338373,104310.0,104300.0,0.47951368]
[1750254056503,0.02164683,104310.0,104300.0,0.50827566]
[1750254056728,0.20128401,104330.0,104320.0,0.0645]
[1750254056945,0.01916892,104330.0,104320.0,0.37999808]
[1750254057158,0.01916892,104330.0,104320.0,0.38958332]
[1750254057603,0.24457893,104330.0,104320.0,0.37041256]
[1750254057790,0.24457893,104330.0,104320.0,0.37999826]
[1750254058001,0.02412517,104330.0,104320.0,0.37999808]
[1750254058212,0.04569385,104330.0,104320.0,0.38958332]
[1750254058411,0.25656292,104330.0,104320.0,0.37163104]
[1750254058636,0.04329455,104330.0,104320.0,0.38121656]
[1750254058849,0.05527909,104330.0,104320.0,0.39080189]
[1750254059063,0.04569358,104330.0,104320.0,0.40038713]
[1750254059275,0.02412499,104330.0,104320.0,0.40038713]
[1750254059483,0.00958414,104330.0,104320.0,0.45959647]
[1750254059742,0.28070652,104340.0,104330.0,0.0611]
[1750254059899,0.28070652,104340.0,104330.0,0.20898176]
[1750254060320,0.10586652,104340.0,104330.0,0.20898176]
[1750254060537,0.10826619,104340.0,104330.0,0.41026604]
[1750254060745,0.10826619,104340.0,104330.0,0.48021954]
[1750254060988,0.10826619,104340.0,104330.0,0.28852013]
[1750254061179,0.10826619,104340.0,104330.0,0.27893516]
[1750254061405,0.02657411,104340.0,104330.0,0.49938855]
[1750254061610,0.0096334,104340.0,104330.0,0.50897287]
[1750254061830,0.00963322,104340.0,104330.0,0.50897287]
[1750254062030,0.22048254,104340.0,104330.0,0.27893516]
[1750254062243,0.2254398,104340.0,104330.0,0.15734176]
[1750254062465,0.2254398,104340.0,104330.0,0.14788176]
[1750254062466,0.2264398,104340.0,104330.0,0.14788176]
[1750254062683,0.01454085,104320.0,104310.0,0.0332]
[1750254062896,0.22782962,104320.0,104310.0,0.21378176]
[1750254063107,0.22782962,104320.0,104310.0,0.16214176]
[1750254063108,0.22542995,104320.0,104310.0,0.16214176]
[1750254063316,0.22542995,104320.0,104310.0,0.21378176]
[1750254063788,0.22542995,104320.0,104310.0,0.18108176]
[1750254064413,0.23501583,104320.0,104310.0,0.18108176]
[1750254064621,0.22543022,104320.0,104310.0,0.18108176]
[1750254064840,0.26584452,104320.0,104310.0,0.09624176]
[1750254065051,0.22547039,104300.0,104290.0,0.33767769]
[1750254065293,0.03371584,104300.0,104290.0,0.43406193]
[1750254065510,0.23745769,104300.0,104290.0,0.4436503]
[1750254065724,0.22547057,104300.0,104290.0,0.42447338]
[1750254065933,0.03371565,104300.0,104290.0,0.44364965]
[1750254066145,0.02412811,104300.0,104290.0,0.51773765]
[1750254066377,0.01454085,104300.0,104290.0,0.52073765]
[1750254066832,0.03371529,104300.0,104290.0,0.52073765]
[1750254067036,0.04570241,104300.0,104290.0,0.52073765]
[1750254067245,0.05528995,104300.0,104290.0,0.52073765]
[1750254067572,0.0265276,104300.0,104290.0,0.52073765]
[1750254067776,0.03611486,104300.0,104290.0,0.52073765]
[1750254067977,0.0265276,104300.0,104290.0,0.52073765]
[1750254068210,0.0337151,104300.0,104290.0,0.52073765]
[1750254068789,0.01454085,104300.0,104290.0,0.52073765]
[1750254069026,0.04330228,104300.0,104290.0,0.52073765]
[1750254069248,0.23505683,104300.0,104290.0,0.49197338]
[1750254069476,0.23505793,104300.0,104290.0,0.13228406]
[1750254069680,0.22547057,104300.0,104290.0,0.09938406]
[1750254069896,5.35777057,104300.0,104290.0,0.0031423]
[1750254070121,5.3903438,104300.0,104290.0,0.0031423]
[1750254070351,5.63649302,104300.0,104290.0,0.0031423]
[1750254070785,5.5403438,104300.0,104290.0,0.0031423]
[1750254071009,0.6567038,104300.0,104290.0,0.0031423]
[1750254071218,0.4566982,104300.0,104290.0,0.0031423]
[1750254071422,0.48544068,104300.0,104290.0,0.0001423]
[1750254071659,0.48644068,104300.0,104290.0,0.0001423]
[1750254071858,0.50521305,104300.0,104290.0,0.0001423]
[1750254072069,0.30521305,104300.0,104290.0,0.0001423]
[1750254072275,0.42647057,104300.0,104290.0,0.0001423]
[1750254072496,0.60103057,104300.0,104290.0,0.09638406]
[1750254072694,0.65103057,104300.0,104290.0,0.12711948]
[1750254072907,0.40103057,104300.0,104290.0,0.12711948]
[1750254073517,0.40103057,104300.0,104290.0,0.09638406]
[1750254074166,0.24861604,104300.0,104290.0,0.09638406]
[1750254074369,0.29761604,104300.0,104290.0,0.0001423]
[1750254074581,0.49761604,104300.0,104290.0,0.0001423]
[1750254074795,0.50428559,104300.0,104290.0,0.0001423]
[1750254074997,0.49761604,104300.0,104290.0,0.0001423]
[1750254076083,0.3263132,104300.0,104290.0,0.0001423]
[1750254076300,0.34085405,104300.0,104290.0,0.0001423]
[1750254076499,0.08759689,104300.0,104290.0,0.288157]
[1750254076712,0.26447656,104300.0,104290.0,0.41950545]
[1750254076923,0.26207689,104300.0,104290.0,0.41950545]
[1750254077294,0.26207689,104300.0,104290.0,0.41950554]
[1750254077733,0.39995057,104300.0,104290.0,0.42909391]
[1750254077950,0.03371547,104300.0,104290.0,0.42909391]
[1750254078165,0.04570286,104300.0,104290.0,0.438682]
[1750254078393,0.0095869,104300.0,104290.0,0.44827]
[1750254078614,0.39493632,104310.0,104300.0,0.26464227]
[1750254078831,0.39989083,104310.0,104300.0,0.21082176]
[1750254079081,0.39030421,104310.0,104300.0,0.21082176]
[1750254080147,0.39030421,104310.0,104300.0,0.41216403]
[1750254080370,0.39030421,104310.0,104300.0,0.21082176]
[1750254080833,0.39030421,104310.0,104300.0,0.14752176]
[1750254081055,0.39130421,104310.0,104300.0,0.14752176]
[1750254081940,0.39130421,104310.0,104300.0,0.18338312]
[1750254082149,0.39130421,104310.0,104300.0,0.14752176]
[1750254082604,0.21588294,104300.0,104290.0,0.0001423]
[1750254083049,0.26588294,104300.0,104290.0,0.0001423]
[1750254083271,0.21588294,104300.0,104290.0,0.0001423]
[1750254083486,0.26588294,104300.0,104290.0,0.0001423]
[1750254083922,0.29474147,104300.0,104290.0,0.0001423]
[1750254084844,0.33420756,104300.0,104290.0,0.0001423]
[1750254086180,0.62672756,104300.0,104290.0,0.0001423]
[1750254086408,0.97006147,104300.0,104290.0,0.0001423]
[1750254086628,0.97672666,104300.0,104290.0,0.0001423]
[1750254086847,0.97006147,104300.0,104290.0,0.0001423]
[1750254087723,6.02672603,104300.0,104290.0,0.0001423]
[1750254088376,6.02672609,104300.0,104290.0,0.0001423]
[1750254088614,6.02672612,104300.0,104290.0,0.0001423]
[1750254090416,6.02006147,104300.0,104290.0,0.0001423]
[1750254090672,6.02672597,104300.0,104290.0,0.0001423]
[1750254090883,6.51692597,104300.0,104290.0,0.0001423]
[1750254091101,1.46026147,104300.0,104290.0,0.0001423]
[1750254091321,1.28594147,104300.0,104290.0,0.0001423]
[1750254091547,1.19254209,104300.0,104290.0,0.15918406]
[1750254091770,1.36674209,104300.0,104290.0,0.15918406]
[1750254092013,1.41674209,104300.0,104290.0,0.15918406]
[1750254092253,1.43028294,104300.0,104290.0,0.15918406]
[1750254092496,1.41574209,104300.0,104290.0,0.15918406]
[1750254092734,1.41574209,104300.0,104290.0,0.41515368]
[1750254092735,0.68374717,104300.0,104290.0,0.41515368]
[1750254092970,0.69333398,104300.0,104290.0,0.43432977]
[1750254093220,0.52876124,104300.0,104290.0,0.43432977]
[1750254093452,0.53834878,104300.0,104290.0,0.43432977]
[1750254093663,0.53834869,104300.0,104290.0,0.20420401]
[1750254093876,0.73010461,104300.0,104290.0,0.15918406]
[1750254094095,0.72547075,104300.0,104290.0,0.21046406]
[1750254095263,0.71588312,104300.0,104290.0,0.21046406]
[1750254096541,0.72547057,104300.0,104290.0,0.21046406]
[1750254096964,0.72547002,104300.0,104290.0,0.21046406]
[1750254097195,0.29608862,104300.0,104290.0,0.4750633]
[1750254097426,0.29608862,104300.0,104290.0,0.4846513]
[1750254098832,0.07550579,104300.0,104290.0,0.4846513]
[1750254099055,0.26726034,104300.0,104290.0,0.20324526]
[1750254099276,0.27684724,104300.0,104290.0,0.20324526]
[1750254099501,0.27684724,104300.0,104290.0,0.4654753]
[1750254099502,0.28643432,104300.0,104290.0,0.4654753]
[1750254099748,0.29602149,104300.0,104290.0,0.20324526]
[1750254099972,0.29602277,104300.0,104290.0,0.25552526]
[1750254100453,0.28643551,104300.0,104290.0,0.16018406]
[1750254100680,0.47497636,104300.0,104290.0,0.16018406]
[1750254100905,0.47497636,104300.0,104290.0,0.12738406]
[1750254101128,0.47497636,104300.0,104290.0,0.17866406]
[1750254101815,0.47497636,104300.0,104290.0,0.21126406]
[1750254102030,0.46538891,104300.0,104290.0,0.23239047]
[1750254102912,0.30097618,104300.0,104290.0,0.23239047]
[1750254103128,0.29138873,104300.0,104290.0,0.23239047]
[1750254108483,0.28180119,104300.0,104290.0,0.0011423]
[1750254108697,0.28180119,104300.0,104270.0,0.06424]
[1750254108698,0.22551066,104280.0,104270.0,0.06424]
[1750254108934,0.39935066,104280.0,104270.0,0.12938176]
[1750254109169,0.39935066,104280.0,104270.0,0.09628176]
[1750254109662,0.40924927,104280.0,104270.0,0.09628176]
[1750254110100,0.40924927,104280.0,104270.0,0.09728176]
[1750254110313,0.40924927,104280.0,104270.0,0.11209794]
[1750254110769,0.40924927,104280.0,104270.0,0.14489794]
[1750254111426,0.39470842,104280.0,104270.0,0.14489794]
[1750254111846,0.39470842,104280.0,104270.0,0.13008176]
[1750254112062,0.39470842,104280.0,104270.0,0.09728176]
[1750254112549,0.39470842,104280.0,104270.0,0.16118176]
[1750254112965,0.38511932,104280.0,104270.0,0.16118176]
[1750254113418,0.18373861,104280.0,104270.0,0.16118176]
[1750254113645,0.20138043,104280.0,104270.0,0.18238794]
[1750254113886,0.38468926,104280.0,104270.0,0.18238794]
[1750254114106,0.23014811,104280.0,104270.0,0.18238794]
[1750254114540,0.22055855,104280.0,104270.0,0.18238794]
[1750254114975,0.23014802,104280.0,104270.0,0.18238794]
[1750254115411,0.22055855,104280.0,104270.0,0.18238794]
[1750254115634,0.23014802,104280.0,104270.0,0.18238794]
[1750254116087,0.23977237,104280.0,104270.0,0.18238794]
[1750254116969,0.2397731,104280.0,104270.0,0.18238794]
[1750254117694,0.23018363,104280.0,104270.0,0.18238794]
[1750254118806,0.22059453,104280.0,104270.0,0.16118176]
[1750254119334,0.22059453,104280.0,104270.0,0.00104]
[1750254119560,0.27059453,104280.0,104270.0,0.00104]
[1750254121233,0.22059453,104280.0,104270.0,0.00104]
[1750254121471,0.27059453,104280.0,104270.0,0.00104]
[1750254121711,0.44419453,104280.0,104270.0,0.00104]
[1750254121942,0.39419453,104280.0,104270.0,0.00104]
[1750254122183,0.44419453,104280.0,104270.0,0.00104]
[1750254122423,0.40873538,104280.0,104270.0,0.00104]
[1750254122659,5.54590902,104280.0,104270.0,0.00104]
[1750254123151,5.69590902,104280.0,104270.0,0.00104]
[1750254123388,5.72180902,104280.0,104270.0,4e-05]
[1750254123842,6.07685039,104280.0,104270.0,4e-05]
[1750254124062,6.2109621,104280.0,104270.0,4e-05]
[1750254124326,6.14467186,104280.0,104270.0,4e-05]
[1750254124800,5.58195113,104260.0,104250.0,1e-08]
[1750254125032,5.85838653,104260.0,104250.0,1e-08]
[1750254125518,5.65838653,104260.0,104250.0,1e-08]
[1750254125749,5.53624477,104260.0,104250.0,1e-08]
[1750254125980,5.54008977,104260.0,104250.0,1e-08]
[1750254126209,5.33606977,104260.0,104250.0,1e-08]
[1750254126439,5.50291613,104260.0,104250.0,1e-08]
[1750254126901,0.23139613,104260.0,104250.0,1e-08]
[1750254127178,0.45491613,104260.0,104250.0,1e-08]
[1750254127858,0.31159613,104260.0,104250.0,1e-08]
[1750254128086,0.51344388,104260.0,104250.0,1e-08]
[1750254128968,0.45491613,104260.0,104250.0,1e-08]
[1750254130816,0.28139613,104260.0,104250.0,1e-08]
[1750254131047,0.45483613,104260.0,104250.0,1e-08]
[1750254132862,0.28139613,104260.0,104250.0,1e-08]
[1750254133101,0.45483613,104260.0,104250.0,1e-08]
[1750254133320,0.55098535,104260.0,104250.0,1e-08]